Cogmind - Beta 12 @@@ ROGUE MODE // 2023.08.08 @ 14:32:11 Player: Cmdr.Laserstrahl Result: Destroyed by Y-45 Defender with Beam Rifle Performance ------------- Evolutions (1) 500 Regions Visited (2) 400 Robots Destroyed (26) 130 Value Destroyed (818) 818 Prototype IDs (6) 120 Alien Tech Used (0) 0 Bonus (57) 57 TOTAL SCORE: 2025 Bonus ------- High Alert Combat Kills 57 Cogmind --------- Core Integrity 0/400 Matter 255/300 Energy 70/100 System Corruption 2% Temperature Cool (9) Movement Core (300) Ox5 Location -9/Materials Parts ------- > --- POWER (1) -------- (None) > --- PROPULSION (3) --- (None) > --- UTILITY (3) ------ Medium Storage Unit Signal Interpreter Light Armor Plating > --- WEAPON (2) ------- Heavy EM Pulse Gun > --- INVENTORY (10) --- Light Ion Engine Improved Hover Unit Cooling System Sensor Array Seismic Detector Core Shielding EM Pulse Gun Particle Gun Peak State ------------ > --- POWER ------------ Light Nuclear Core > --- PROPULSION ------- Improved Hover Unit Improved Hover Unit Improved Hover Unit > --- UTILITY ---------- Small Storage Unit Core Shielding Hardened Light Armor Plating > --- WEAPON ----------- Particle Gun Light Assault Rifle > --- INVENTORY -------- Light Ion Engine Improved Hover Unit Cooling System Sensor Array Signal Interpreter Seismic Detector EM Pulse Gun Grenade Launcher [Rating: 17] Favorites ----------- Power Light Nuclear Core Engine Light Ion Engine Power Core Light Nuclear Core Propulsion Improved Hover Unit Leg Improved Aluminum Leg Wheel Wheel Hover Unit Improved Hover Unit Utility Small Storage Unit Device Heat Sink Storage Small Storage Unit Processor Signal Interpreter Protection Core Shielding Weapon Light Assault Rifle Energy Gun Particle Gun Ballistic Gun Light Assault Rifle Launcher Grenade Launcher Slashing Weapon Katana Build | -11 -10 -9 ------- Run | Jun Mat Mat Slots Evolved 2 | . . 2 Power . | . . . Propulsion 1 | . . 1 Utility 1 | . . 1 Weapon . | . . . Parts Attached 27 | 6 8 13 Power 4 | 1 2 1 Engine 3 | 1 1 1 Core 1 | . 1 . Reactor . | . . . Propulsion 8 | 2 2 4 Treads . | . . . Leg 2 | . . 2 Wheel 2 | 2 . . Hover 4 | . 2 2 Flight . | . . . Utility 7 | 1 2 4 Device 1 | . 1 . Storage 2 | 1 . 1 Processor 1 | . . 1 Hackware . | . . . Protection 3 | . 1 2 Artifact . | . . . Weapon 8 | 2 2 4 Energy Gun 2 | . 1 1 Energy Cannon . | . . . Ballistic Gun 3 | 2 1 . Ballistic Cannon . | . . . Launcher 2 | . . 2 Special Weapon . | . . . Impact Weapon . | . . . Slashing Weapon 1 | . . 1 Piercing Weapon . | . . . Special Melee Weapon . | . . . Unidentified Prototypes . | . . . Parts Lost 11 | . 1 10 Power 1 | . . 1 Propulsion 6 | . 1 5 Utility 1 | . . 1 Weapon 3 | . . 3 Highest Loss Streak 8 | . 1 8 To Critical Strikes . | . . . Average Slot Usage (%) 92 | . 96 86 Engine 4 | . 4 2 Core 7 | . 9 6 Leg 3 | . . 8 Wheel 5 | . 9 . Hover 18 | . 18 17 Storage 12 | . 14 11 Processor 2 | . . 4 Protection 12 | . 10 13 Energy Gun 6 | . 9 3 Ballistic Gun 14 | . 18 10 Slashing Weapon 2 | . . 5 Naked Turns . | . . . Heaviest Build 25 | 10 15 25 Greatest Support 26 | 20 20 26 Greatest Overweight (x) 4 | . 1 4 Average Overweight (x) . | . . . Largest Inventory Capacity 10 | 8 8 10 Average Capacity 8 | 7 8 9 Most Carried 10 | 4 8 10 Average Carried 7 | 2 7 8 Final Capacity 10 | 8 8 10 Final Carried 8 | 4 8 8 Class Distribution -------------------- 80% | Mutant 19% | Scavenger-Mutant Dominant Class ---------------- Mutant | -10/Materials Mutant | -9/Materials Resources | -11 -10 -9 ----------- Run | Jun Mat Mat Matter Collected 541 | 201 179 161 Remotely . | . . . Salvage Created 838 | . 278 560 Parts 55 | . 17 38 Haulers Intercepted 1 | . . 1 Recyclers Shooed . | . . . Parts Field Recycled . | . . . Retrieved Matter . | . . . Parts Self-Destructed . | . . . Prevented . | . . . Kills | -11 -10 -9 ------- Run | Jun Mat Mat Combat Hostiles Destroyed 22 | . 6 16 Melee 4 | . . 4 Guns 9 | . 6 3 AOE 9 | . . 9 Classes Destroyed 7 | . 1 6 Hauler 1 | . . 1 Recycler 2 | . . 2 Watcher 1 | . . 1 Swarmer 4 | . . 4 Grunt 12 | . 6 6 Duelist 2 | . . 2 Sentry 4 | . . 4 Best Kill Streak 7 | . 2 7 Combat Bots Only 7 | . 2 7 Max Kills in Single Turn 4 | . 2 4 Gunslinging 1 | . 1 . Exploded 4 | . . 4 Melee 1 | . . 1 Uniques/NPCs Destroyed . | . . . Combat | -11 -10 -9 -------- Run | Jun Mat Mat Damage Taken 1683 | . 439 1244 Core 600 | . 191 409 Absorbed by Shields . | . . . Redirected to Shielding 25 | . 19 6 Core Remaining (%) 61 | 100 23 . Volleys Fired 55 | . 29 26 Largest 2 | . 2 2 Hottest 85 | . 85 85 Shots Fired 101 | . 58 43 Gun 93 | . 58 35 Cannon . | . . . Launcher 8 | . . 8 Special . | . . . Kinetic 73 | . 56 17 Thermal 19 | . 2 17 Explosive 8 | . . 8 Electromagnetic 1 | . . 1 Robot Hit Streak 14 | . 14 5 Robot Miss Streak 6 | . 6 5 Penetration Max . | . . . Secondary Targets 2 | . 1 1 Max Gunslinging Chain 1 | . 1 1 Shots Hit Robots 70 | . 39 31 Core Hits 49 | . 17 32 Critical Kills . | . . . Critical Parts Destroyed . | . . . Critical Strikes 1 | . . 1 Burn 1 | . . 1 Melee Attacks 14 | . . 14 Impact . | . . . Slashing 14 | . . 14 Piercing . | . . . Sneak Attacks . | . . . Combat Hostiles . | . . . Follow-up Attacks . | . . . Damage Inflicted 1833 | . 344 1489 Guns 512 | . 344 168 Cannons . | . . . Explosions 969 | . . 969 Melee 352 | . . 352 Ramming . | . . . Kinetic 408 | . 329 79 Thermal 92 | . 15 77 Explosive 969 | . . 969 Electromagnetic 12 | . . 12 Impact . | . . . Slashing 352 | . . 352 Piercing . | . . . Highest Corruption 2 | . . 2 Average Corruption 2 | . . 2 Corruption Purged . | . . . Corruption Blocked . | . . . Effects 3 | . . 3 Message Errors 2 | . . 2 Matter Fused 1 | . . 1 Overload Shots . | . . . Overflow Damage 60 | . . 60 Projectiles . | . . . Explosions 60 | . . 60 Melee . | . . . Knockbacks . | . . . Impact . | . . . Kinetic . | . . . Secondary . | . . . Self-Inflicted Damage 22 | . . 22 Shots 3 | . . 3 Rammed 1 | . . 1 Targets Rammed 1 | . . 1 Kicked . | . . . Crushed . | . . . Highest Temperature 391 | . 57 391 Average Temperature 124 | . 25 161 Received Heat Transfer 606 | . 288 318 Effects 3 | . . 3 Shutdowns 1 | . . 1 Interference 2 | . . 2 Siege Activations . | . . . Robots Corrupted . | . . . Combat Hostiles . | . . . Parts Fried . | . . . Impact Corruptions . | . . . Robots Melted . | . . . Combat Hostiles . | . . . Parts Melted . | . . . Heat Transferred 296 | . 37 259 Parts Sabotaged . | . . . Parts Stolen . | . . . Parts Stripped . | . . . Power Chain Reactions . | . . . Missiles Intercepted . | . . . Alert | -11 -10 -9 ------- Run | Jun Mat Mat Peak Influence 533 | . 185 533 Initial 5 | . . 5 Average 156 | . 91 257 Maximum Alert Level 2 | . . 2 Low Security (%) 73 | 100 100 36 Level 1 23 | . . 56 Level 2 3 | . . 7 Level 3 . | . . . Level 4 . | . . . Level 5 . | . . . High Security . | . . . Max Security . | . . . Squads Dispatched 2 | . 1 1 Investigation . | . . . Extermination . | . . . Reinforcement 2 | . 1 1 Assault . | . . . Garrison . | . . . Intercept . | . . . Searches Triggered . | . . . Construction Impeded . | . . . Haulers Reinforced . | . . . Active Scanning Responses . | . . . Cargo Convoy Interrupts . | . . . Stealth | -11 -10 -9 --------- Run | Jun Mat Mat Distress Signals 3 | . . 3 Communications Jammed . | . . . Distress Signals . | . . . Times Spotted 34 | . 11 23 Peak Tracking Total 11 | . 3 11 Tactical Retreats 2 | . . 2 Traps | -11 -10 -9 ------- Run | Jun Mat Mat Traps Triggered . | . . . Indirectly . | . . . Trap Hack Attempts . | . . . Triggered . | . . . Disarmed . | . . . Reprogrammed . | . . . Reused . | . . . Traps Extracted . | . . . Installed . | . . . Triggered . | . . . Machines | -11 -10 -9 ---------- Run | Jun Mat Mat Machines Disabled 4 | . . 4 Max in Single Turn 2 | . . 2 Machines Repaired . | . . . Machines Sabotaged . | . . . Overloaded Fab Kills . | . . . Hacking | -11 -10 -9 --------- Run | Jun Mat Mat Machines Accessed 4 | . 2 2 Terminals 4 | . 2 2 Fabricators . | . . . Repair Stations . | . . . Recycling Units . | . . . Scanalyzers . | . . . Garrison Access . | . . . Total Hacks 8 | . 4 4 Successful 4 | . 1 3 Failed 4 | . 3 1 Catastrophic . | . . . Database Lockouts . | . . . Manual . | . . . Terminals 8 | . 4 4 Fabricators . | . . . Repair Stations . | . . . Recycling Units . | . . . Scanalyzers . | . . . Garrison Access . | . . . Terminal Hacks 4 | . 1 3 Prototype ID Bank 3 | . 1 2 Locate Traps 1 | . . 1 Fabricator Hacks . | . . . Repair Station Hacks . | . . . Recycling Unit Hacks . | . . . Scanalyzer . | . . . Garrison Access Hacks . | . . . Unauthorized Hacks . | . . . Terminals . | . . . Fabricators . | . . . Repair Stations . | . . . Recycling Units . | . . . Scanalyzers . | . . . Garrison Access . | . . . Data Cores Recovered . | . . . Used . | . . . Hacking Detections 4 | . 2 2 Full Trace Events . | . . . Feedback Events . | . . . Feedback Blocked . | . . . Robot Schematics Acquired . | . . . Robots Built . | . . . Authchips . | . . . Time . | . . . Total Robot Build Rating . | . . . Part Schematics Acquired . | . . . Parts Built . | . . . Authchips . | . . . Time . | . . . Total Part Build Rating . | . . . Parts Repaired . | . . . Time . | . . . Parts Recycled . | . . . Recycled Matter . | . . . Retrieved Matter . | . . . Retrieved Components . | . . . Parts Scanalyzed . | . . . Part Schematics Acquired . | . . . Parts Damaged . | . . . Bothacking | -11 -10 -9 ------------ Run | Jun Mat Mat Used RIF Installer . | . . . Robots Hacked . | . . . Non-combat . | . . . Combat . | . . . Robot Hacks Applied . | . . . Relay Couplers Released . | . . . Fabnet Peak Effective % . | . . . Robots Rewired . | . . . Allies Hacked . | . . . Hacks Repelled . | . . . Allies | -11 -10 -9 -------- Run | Jun Mat Mat Total Allies . | . . . Largest Group . | . . . Highest-Rated Group . | . . . Highest-Rated Ally . | . . . Total Orders . | . . . Ally Attacks . | . . . Total Damage . | . . . Kills . | . . . Allies Corrupted . | . . . Allies Melted . | . . . Intel | -11 -10 -9 ------- Run | Jun Mat Mat Robot Analysis Total . | . . . Derelict Logs Recovered . | . . . Drone Launches . | . . . Drone Recoveries . | . . . Exploration | -11 -10 -9 ------------- Run | Jun Mat Mat Turns Passed 914 | 46 484 384 Spaces Moved 644 | 39 356 249 Core 3 | 2 . 1 Treads . | . . . Legs 117 | . . 117 Wheels 135 | 37 98 . Hover 389 | . 258 131 Flight . | . . . Fastest Speed 50 | 50 80 52 Average Speed 103 | 78 106 102 Slowest Speed 250 | 80 116 250 Overloaded Moves . | . . . Propulsion Burnouts . | . . . Robots Hopped . | . . . Cave-ins Triggered . | . . . Exploration Rate (%) 33 | 3 74 24 Regions Visited 2 Branch Regions . Pre-discovered Areas . | . . . Known Exits Taken . | . . . Unknown Exits Taken 2 | 1 1 . Scrap Searched . | . . . Spaces Dug . | . . . Terrain Destroyed 57 | . . 57 Melee . | . . . Projectile . | . . . AOE 57 | . . 57 Terrain Rammed . | . . . Walls Destroyed . | . . . Machines Disabled . | . . . Actions | -11 -10 -9 --------- Run | Jun Mat Mat Total 790 | 54 417 319 Wait 8 | . 3 5 Move 642 | 38 355 249 Hop . | . . . Pick Up 29 | 10 13 6 Fast Attach 4 | . 2 2 Attach 19 | 6 4 9 Detach 3 | . . 3 Swap 4 | . 2 2 Drop 11 | . 9 2 Fire 55 | . 29 26 Melee 14 | . . 14 Ram 1 | . . 1 Kick . | . . . Crush . | . . . Escape Stasis . | . . . Rewire . | . . . Trap . | . . . Miscellaneous . | . . . Route ------- -11/Junkyard -10/Materials (discovered 3 exits: *Mat / [*Min x2]) -9/Materials (discovered 1 exit: [*Min]) History --------- Turn | Location | Event 25 | -11/Junkyard | Discovered new exit (range 16) 47 | -11/Junkyard | Entered Materials 180 | -10/Materials | Core integrity fell below 50% 299 | -10/Materials | Discovered new exit (range 16) 300 | -10/Materials | Build established: Mutant 456 | -10/Materials | Discovered new exit (range 10) 513 | -10/Materials | Discovered new exit (range 13) 531 | -10/Materials | Entered another Materials area 531 | -9/Materials | Evolved 2 slots: Propulsion x1, Utility x1 851 | -9/Materials | Discovered new exit (range 16) 894 | -9/Materials | Core integrity fell below 50% 900 | -9/Materials | Core integrity fell below 20% 915 | -9/Materials | Destroyed by Y-45 Defender with Beam Rifle Last Messages --------------- 00887_ Y-45 Defender destroyed. 00888_ Acquired 5 matter. 00889_ Lgt. Assault Rifle destroyed. 00897_ K-01 Serf collects debris. 00897_ Y-45 Defender destroyed. 00900_ G-34 Mercenary destroyed. 00901_ Acquired 10 matter. 00901_ G-34 Mercenary destroyed. 00901_ Processing Tank disabled. 00901_ K-01 Serf collects debris. 00902_ Acquired 10 matter. 00902_ Katana destroyed. 00904_ K-01 Serf collects debris. 00905_ Acquired Lgt. Armor Plating. 00911_ The unstable cave ceiling collapses. 00911_ Y-45 Defender destroyed. 00911_ G-34 Mercenary destroyed. 00911_ Grenade Launcher destroyed. 00911_ Destroyed Grenade Launcher. 00911_ K-01 Serf collects debris. Map ----- +----------------------------------------------------+ | ??????# #????# # """" # #### | | ###########+#############+##### % "" # #??? | | ^ + # #??? | | ^ ^^ ################ #### | | ^ ^ #????#########?# ## | | #+####### ##########+####????# ### ## | | # #?# #??????? ""??????# ##### ## # " | | # #?# #??????# "R" ????# #???# ## # " | | # """ #?# #??????# " " #???# #???# T + " | | # """ #?# ??????# #???# #???#### # | | # """ #?# ?????# #???# #??????# ### | | # #?# ????#########???# #??????### ###?? | | # """ #?########???????????????# #????????# #???? | | # """ #????????????????????????# #???????## ##??? | | # "????????????????????????????# #??????## #### | | # ????????????????????????????# #??????+ % | | ###????????????????????????????# #????? ## #### | | ???????????????????????????????# #???? ??# #??? | | ???????????????????????????????# ####+#### #??? | | ?????????????????????############ #??? | | ????????????????? +??? | | ????????????????? #??? | | ????????????????? ###########??? | | ?????????????????? ############!* #????????????? | | ????????????????????#############==!#????????????? | | ????????????????????# !@!Y!=% #% #????????????? | | ????????????????????# *=%" "= k==!+????????????? | | ????????????????????# !=[[Y "k #== #????????????? | | ????????????????????# [=% [! " a# #????????????? | | ????????????????????# !!=%* " # #????????????? | | ????????????????????# ! =% " # #????????????? | | ????????????????????# # #????????????? | | ????????????????????# #### #????????????? | | ????????????????????### ##??# #????????????? | | ??????????????????????#######??? ????????????? | | ???????????????????????????????? ????????????? | | ???????????????????????????????? ????????????? | | ???????????????????????????????? < "???????????? | | ???????????????????????????????# |???????????? | | ???????????????????????????????? "???????????? | | ???????????????????????????????? ???????????? | | ????????????????????????????????# ?????????????? | | ?????????????????????????????????????????????????? | | ?????????????????????????????????????????????????? | | ?????????????????????????????????????????????????? | | ?????????????????????????????????????????????????? | | ?????????????????????????????????????????????????? | | ?????????????????????????????????????????????????? | | ?????????????????????????????????????????????????? | | ?????????????????????????????????????????????????? | +----------------------------------------------------+ Best States ------------- Heat Dissipation 35 Energy Generation 14 Energy Capacity 250 Matter Stores 300 Matter Capacity 300 Sight Range 16 Terrain Scan Density 10 Armor Coverage 150 Core Shielding 20 Evasion (%) 55 Item Schematics ----------------- None Robot Schematics ------------------ None Fabricated ------------ Nothing Alien Tech Used ----------------- None Achievements -------------- None Challenges ------------ None Game ------ Seed ElectronScrapPurifier Manual? 0 Play Time 00:24:50 Cumulative 115.6 hours Start 2023.08.08 @ 14:06:50 End 2023.08.08 @ 14:32:11 Sessions 1 Manual Loads 0 Difficulty Rogue Special Mode None Game No. 51 Rogue 48 Adventurer 3 Explorer 0 Win Type - Total 0 Types 0/0/0/0/0/0/0/0/0 Lore% 21 Gallery% 41 Achievement% 28 Wizard Run 0 Options --------- ASCII 0 Keyboard 0 Movement Mouse Keybinds 0 Fullscreen 1 Font 18/SmallcapsGlow Map View 76x50 Tactical HUD 1 Map Filters NONE Filters NONE Steam 1 RUN: b358bd26-9889-4623-8cd9-9e928bda6e6c